[Event "11th Arad Open 2018"]
[Site "Arad"]
[Date "2018.08.09"]
[Round "6"]
[White "Yordanov, Lachezar"]
[Black "Nicora, Cristi"]
[Result "1/2-1/2"]
[ECO "A01"]
[WhiteElo "2314"]
[BlackElo "2158"]
[Annotator "NA"]
[PlyCount "120"]
[EventDate "2018.08.05"]
[EventType "swiss"]
[EventCountry "ROU"]
[SourceTitle "playchess.com"]
[Source "ChessBase"]
[SourceQuality "1"]
[TimeControl "40/5400+30:1800+30"]

1. b3 {[%emt 0:00:00]} d5 {[%emt 0:00:00]} 2. Bb2 {[%emt 0:00:00]} e6 {[%emt 0:00:00]} 3. e3 {[%emt 0:00:00]} Nf6 {[%emt 0:00:00]} 4. Nf3 {[%emt 0:00:02]} Bd6 {[%emt 0:00:00]} 5. d4 {[%emt 0:00:30]} O-O {[%emt 0:00:17]} 6. Bd3 {[%emt 0:00:04]} Nbd7 {[%emt 0:00:46]} 7. O-O {[%emt 0:00:10]} b6 {[%emt 0:05:02]} 8. c4 {[%emt 0:00:13]} Bb7 {[%emt 0:00:48]} 9. Nbd2 {[%emt 0:00:39]} Rc8 {[%emt 0:01:47]} 10. Qe2 {[%emt 0:01:27]} Re8 {[%emt 0:01:56]} 11. e4 {[%emt 0:02:16]} dxe4 {[%emt 0:00:31]} 12. Nxe4 {[%emt 0:00:07]} Nxe4 {[%emt 0:03:37]} 13. Bxe4 {[%emt 0:00:05]} Bxe4 {[%emt 0:00:05]} 14. Qxe4 {[%emt 0:00:05]} f5 {[%emt 0:13:59]} 15. Qe3 {[%emt 0:01:41]} c5 {[%emt 0:02:45]} 16. Rad1 {[%emt 0:00:41]} Qc7 {[%emt 0:00:40]} 17. dxc5 {[%emt 0:01:09]} Nxc5 {[%emt 0:00:39]} 18. Be5 {[%emt 0:03:41]} Bxe5 {[%emt 0:05:00]} 19. Qxe5 {[%emt 0:01:08]} Qe7 {[%emt 0:02:11]} 20. Nd4 {[%emt 0:02:03]} Ne4 {[%emt 0:08:58]} 21. f3 {[%emt 0:02:52]} Rc5 {[%emt 0:02:47]} 22. Qxe6+ {[%emt 0:07:06]} Qxe6 {[%emt 0:01:14]} 23. Nxe6 {[%emt 0:00:05]} Rxe6 {[%emt 0:00:35]} 24. fxe4 {[%emt 0:00:05]} Rxe4 {[%emt 0:00:34]} 25. Rd7 {[%emt 0:00:06]} Ra5 {[%emt 0:03:04]} 26. a4 {[%emt 0:00:07]} Re2 {[%emt 0:07:52]} 27. Rfd1 {[%emt 0:01:32]} Kf8 {[%emt 0:08:46]} 28. R1d5 {[%emt 0:07:43]} Rxd5 {[%emt 0:01:39]} 29. Rxd5 {[%emt 0:00:02]} g6 {[%emt 0:00:20]} 30. a5 {[%emt 0:00:06]} Ke7 {[%emt 0:04:22]} 31. axb6 {[%emt 0:08:18]} axb6 {[%emt 0:00:33]} 32. Rb5 {[%emt 0:00:01]} Re6 {[%emt 0:00:05]} 33. Kf2 {[%emt 0:00:08]} Kd7 {[%emt 0:00:22]} 34. Rd5+ {[%emt 0:00:15]} Kc6 {[%emt 0:02:38]} 35. b4 {[%emt 0:02:17]} Re4 {[%emt 0:00:53]} 36. b5+ {[%emt 0:00:05]} Kc7 {[%emt 0:00:04]} 37. c5 {[%emt 0:00:03]} bxc5 {[%emt 0:00:31]} 38. Rxc5+ {[%emt 0:00:02]} Kb6 {[%emt 0:00:55]} 39. Rd5 {[%emt 0:00:01]} Rb4 {[%emt 0:00:23]} 40. h3 {[%emt 0:00:00]} Rxb5 {[%emt 0:00:00]} 41. Rd7 {[%emt 0:19:32]} Kc5 {[%emt 0:32:31]} 42. Rxh7 {[%emt 0:00:05]} Kd4 {[%emt 0:01:19]} 43. Rg7 {[%emt 0:01:52]} Rb6 {[%emt 0:00:28]} 44. Re7 {[%emt 0:00:11]} Kd5 {[%emt 0:04:01]} 45. Kf3 {[%emt 0:01:01]} Kd6 {[%emt 0:00:58]} 46. Re2 {[%emt 0:00:57]} g5 {[%emt 0:04:35]} 47. Re8 {[%emt 0:00:13]} Rb3+ {[%emt 0:00:04]} 48. Kf2 {[%emt 0:00:06]} f4 {[%emt 0:00:26]} 49. Re4 {[%emt 0:04:41]} Kd5 {[%emt 0:03:03]} 50. Re7 {[%emt 0:00:06]} Kd6 {[%emt 0:00:20]} 51. Re8 {[%emt 0:00:06]} Rb2+ {[%emt 0:00:47]} 52. Kf3 {[%emt 0:00:16]} Rb3+ {[%emt 0:00:02]} 53. Kf2 {[%emt 0:00:06]} Rb2+ {[%emt 0:00:03]} 54. Kg1 {[%emt 0:00:23]} Rb3 {[%emt 0:00:28]} 55. Kf2 {[%emt 0:02:25]} Rb2+ {[%emt 0:00:04]} 56. Re2 {[%emt 0:00:07]} Rb3 {[%emt 0:00:20]} 57. Re4 {[%emt 0:00:26]} Rb2+ {[%emt 0:00:46]} 58. Kg1 {[%emt 0:00:12]} Kd5 {[%emt 0:01:08]} 59. Re8 {[%emt 0:00:11]} Rb1+ {[%emt 0:00:41]} 60. Kf2 {[%emt 0:00:26]} Rb2+ {[%emt 0:00:04]} 1/2-1/2

[Event "11th Arad Open 2018"]
[Site "Arad"]
[Date "2018.08.09"]
[Round "6"]
[White "Trifan, Andrei Ioan"]
[Black "Dumitru, Matei-Ioan"]
[Result "1-0"]
[ECO "B10"]
[WhiteElo "2308"]
[BlackElo "2150"]
[Annotator "NA"]
[PlyCount "109"]
[EventDate "2018.08.05"]
[EventType "swiss"]
[EventCountry "ROU"]
[SourceTitle "playchess.com"]
[Source "ChessBase"]
[SourceQuality "1"]
[TimeControl "40/5400+30:1800+30"]

1. e4 {[%emt 0:00:00]} c6 {[%emt 0:00:00]} 2. c4 {[%emt 0:01:13]} d5 {[%emt 0:00:00]} 3. exd5 {[%emt 0:00:35]} cxd5 {[%emt 0:00:00]} 4. cxd5 {[%emt 0:00:37]} Nf6 {[%emt 0:00:00]} 5. Nc3 {[%emt 0:00:22]} Nxd5 {[%emt 0:00:00]} 6. Nf3 {[%emt 0:01:04]} g6 {[%emt 0:00:00]} 7. Bb5+ {[%emt 0:07:01]} Bd7 {[%emt 0:05:51]} 8. Bc4 {[%emt 0:01:26]} Nb6 {[%emt 0:00:44]} 9. Bb3 {[%emt 0:02:47]} Bg7 {[%emt 0:00:16]} 10. O-O {[%emt 0:01:33]} O-O {[%emt 0:00:19]} 11. d4 {[%emt 0:07:18]} Nc6 {[%emt 0:00:07]} 12. d5 {[%emt 0:02:59]} Na5 {[%emt 0:00:35]} 13. Bg5 {[%emt 0:09:49]} Nxb3 {[%emt 0:02:04]} 14. axb3 {[%emt 0:04:00]} h6 {[%emt 0:01:32]} 15. Be3 {[%emt 0:02:32]} Re8 {[%emt 0:14:11]} 16. Qd2 {[%emt 0:04:33]} Kh7 {[%emt 0:00:29]} 17. h3 {[%emt 0:02:12]} Nc8 {[%emt 0:03:58]} 18. Rfd1 {[%emt 0:02:38]} a6 {[%emt 0:04:36]} 19. Na4 {[%emt 0:02:06]} Bxa4 {[%emt 0:04:51]} 20. bxa4 {[%emt 0:01:18]} Nd6 {[%emt 0:00:39]} 21. Qb4 {[%emt 0:05:47]} Rc8 {[%emt 0:04:32]} 22. Rac1 {[%emt 0:02:56]} Rxc1 {[%emt 0:01:23]} 23. Rxc1 {[%emt 0:02:00]} Qd7 {[%emt 0:02:14]} 24. Bc5 {[%emt 0:04:13]} Nf5 {[%emt 0:05:15]} 25. Rd1 {[%emt 0:02:29]} Rc8 {[%emt 0:05:03]} 26. g4 {[%emt 0:03:52]} Qc7 {[%emt 0:03:52]} 27. Bb6 {[%emt 0:03:56]} Qc2 {[%emt 0:02:05]} 28. Rd2 {[%emt 0:03:38]} Qc1+ {[%emt 0:01:59]} 29. Kg2 {[%emt 0:01:16]} Rc4 {[%emt 0:04:12]} 30. Qb3 {[%emt 0:00:44]} Nd6 {[%emt 0:01:10]} 31. Re2 {[%emt 0:03:00]} Re4 {[%emt 0:17:15]} 32. Rxe4 {[%emt 0:02:22]} Nxe4 {[%emt 0:00:05]} 33. Qb4 {[%emt 0:01:25]} Ng5 {[%emt 0:02:01]} 34. Be3 {[%emt 0:01:50]} Qxb2 {[%emt 0:07:58]} 35. Nxg5+ {[%emt 0:00:54]} hxg5 {[%emt 0:00:19]} 36. Qxe7 {[%emt 0:00:40]} Qe5 {[%emt 0:03:58]} 37. Qxf7 {[%emt 0:03:41]} Qe4+ {[%emt 0:00:14]} 38. Qf3 {[%emt 0:00:58]} Qxa4 {[%emt 0:00:26]} 39. Bxg5 {[%emt 0:00:34]} Qd7 {[%emt 0:00:24]} 40. Qe4 {[%emt 0:00:00]} b5 {[%emt 0:00:00]} 41. Bd2 {[%emt 0:22:04]} Bf8 {[%emt 0:19:33]} 42. h4 {[%emt 0:06:13]} Qe7 {[%emt 0:02:57]} 43. Qf4 {[%emt 0:02:58]} b4 {[%emt 0:06:09]} 44. h5 {[%emt 0:01:21]} gxh5 {[%emt 0:01:00]} 45. Qf5+ {[%emt 0:01:04]} Kg8 {[%emt 0:00:26]} 46. gxh5 {[%emt 0:02:50]} Qf7 {[%emt 0:02:24]} 47. Qg4+ {[%emt 0:01:33]} Qg7 {[%emt 0:02:33]} 48. Qxg7+ {[%emt 0:01:22]} Kxg7 {[%emt 0:00:07]} 49. Kf3 {[%emt 0:00:26]} a5 {[%emt 0:01:10]} 50. Ke4 {[%emt 0:00:13]} a4 {[%emt 0:01:59]} 51. Kd3 {[%emt 0:00:22]} Bc5 {[%emt 0:01:41]} 52. Kc4 {[%emt 0:00:52]} a3 {[%emt 0:00:36]} 53. Kxc5 {[%emt 0:01:24]} b3 {[%emt 0:00:43]} 54. d6 {[%emt 0:00:13]} Kf7 {[%emt 0:00:30]} 55. d7 {[%emt 0:00:36]} 1-0

[Event "11th Arad Open 2018"]
[Site "Arad"]
[Date "2018.08.09"]
[Round "6"]
[White "Tomici, Stefan"]
[Black "Mozes, Ervin"]
[Result "1/2-1/2"]
[ECO "B03"]
[WhiteElo "2306"]
[BlackElo "2143"]
[Annotator "NA"]
[PlyCount "90"]
[EventDate "2018.08.05"]
[EventType "swiss"]
[EventCountry "ROU"]
[SourceTitle "playchess.com"]
[Source "ChessBase"]
[SourceQuality "1"]
[TimeControl "40/5400+30:1800+30"]

1. e4 {[%emt 0:02:43]} Nf6 {[%emt 0:00:00]} 2. e5 {[%emt 0:00:06]} Nd5 {[%emt 0:00:00]} 3. d4 {[%emt 0:00:05]} d6 {[%emt 0:00:00]} 4. c4 {[%emt 0:00:06]} Nb6 {[%emt 0:00:00]} 5. exd6 {[%emt 0:00:08]} exd6 {[%emt 0:00:04]} 6. Nc3 {[%emt 0:01:10]} Be7 {[%emt 0:00:56]} 7. Bd3 {[%emt 0:08:36]} O-O {[%emt 0:01:13]} 8. Nge2 {[%emt 0:00:48]} Nc6 {[%emt 0:02:23]} 9. b3 {[%emt 0:14:22]} Re8 {[%emt 0:02:30]} 10. O-O {[%emt 0:11:00]} Bf6 {[%emt 0:06:47]} 11. Bb2 {[%emt 0:07:25]} Bg4 {[%emt 0:15:38]} 12. f3 {[%emt 0:09:34]} Bh5 {[%emt 0:00:01]} 13. Ne4 {[%emt 0:00:11]} Bg6 {[%emt 0:05:28]} 14. Nxf6+ {[%emt 0:08:43]} Qxf6 {[%emt 0:00:46]} 15. Bxg6 {[%emt 0:00:06]} fxg6 {[%emt 0:01:24]} 16. Qd2 {[%emt 0:05:21]} d5 {[%emt 0:06:15]} 17. c5 {[%emt 0:03:48]} Nd7 {[%emt 0:04:43]} 18. Rae1 {[%emt 0:01:57]} Qf7 {[%emt 0:10:27]} 19. Nf4 {[%emt 0:05:10]} g5 {[%emt 0:14:51]} 20. Nd3 {[%emt 0:02:31]} h6 {[%emt 0:00:23]} 21. b4 {[%emt 0:03:15]} a6 {[%emt 0:02:11]} 22. Bc3 {[%emt 0:02:05]} Rxe1 {[%emt 0:03:11]} 23. Rxe1 {[%emt 0:01:36]} Re8 {[%emt 0:01:04]} 24. a4 {[%emt 0:02:18]} Rxe1+ {[%emt 0:02:23]} 25. Qxe1 {[%emt 0:01:00]} Qe7 {[%emt 0:00:19]} 26. Qxe7 {[%emt 0:01:07]} Nxe7 {[%emt 0:00:16]} 27. Kf2 {[%emt 0:00:19]} c6 {[%emt 0:01:00]} 28. g4 {[%emt 0:01:05]} Ng6 {[%emt 0:06:25]} 29. Ke3 {[%emt 0:01:16]} Kf7 {[%emt 0:00:43]} 30. Be1 {[%emt 0:01:09]} Ndf8 {[%emt 0:00:39]} 31. Bg3 {[%emt 0:01:24]} Ne6 {[%emt 0:00:03]} 32. Nc1 {[%emt 0:00:40]} Ke8 {[%emt 0:00:31]} 33. Ne2 {[%emt 0:01:28]} Kd7 {[%emt 0:00:23]} 34. Nc3 {[%emt 0:02:36]} Kc8 {[%emt 0:01:55]} 35. b5 {[%emt 0:00:24]} axb5 {[%emt 0:00:07]} 36. axb5 {[%emt 0:00:06]} Kd7 {[%emt 0:01:04]} 37. b6 {[%emt 0:01:27]} Ngf4 {[%emt 0:00:42]} 38. Nd1 {[%emt 0:00:58]} Ng2+ {[%emt 0:00:35]} 39. Kd3 {[%emt 0:00:08]} Ngf4+ {[%emt 0:00:02]} 40. Bxf4 {[%emt 0:00:00]} gxf4 {[%emt 0:00:00]} 41. h4 {[%emt 0:18:02]} g5 {[%emt 0:16:14]} 42. h5 {[%emt 0:02:07]} Nd8 {[%emt 0:00:13]} 43. Nf2 {[%emt 0:00:09]} Nf7 {[%emt 0:00:13]} 44. Kc3 {[%emt 0:00:42]} Kc8 {[%emt 0:00:04]} 45. Nd3 {[%emt 0:00:30]} Kd7 {[%emt 0:00:10]} 1/2-1/2

[Event "11th Arad Open 2018"]
[Site "Arad"]
[Date "2018.08.09"]
[Round "6"]
[White "Nastase, Robert-Paul"]
[Black "David, Bogdan-Emanuel"]
[Result "1-0"]
[ECO "E81"]
[WhiteElo "2299"]
[BlackElo "2104"]
[Annotator "NA"]
[PlyCount "79"]
[EventDate "2018.08.05"]
[EventType "swiss"]
[EventCountry "ROU"]
[SourceTitle "playchess.com"]
[Source "ChessBase"]
[SourceQuality "1"]
[TimeControl "40/5400+30:1800+30"]

1. d4 {[%emt 0:00:00]} Nf6 {[%emt 0:01:17]} 2. c4 {[%emt 0:00:00]} g6 {[%emt 0:00:09]} 3. Nc3 {[%emt 0:00:00]} Bg7 {[%emt 0:00:08]} 4. e4 {[%emt 0:00:00]} d6 {[%emt 0:00:09]} 5. f3 {[%emt 0:00:00]} O-O {[%emt 0:00:34]} 6. Bg5 {[%emt 0:00:00]} h6 {[%emt 0:00:56]} 7. Be3 {[%emt 0:00:00]} c5 {[%emt 0:01:05]} 8. d5 {[%emt 0:00:03]} e6 {[%emt 0:00:44]} 9. Qd2 {[%emt 0:00:05]} exd5 {[%emt 0:00:38]} 10. cxd5 {[%emt 0:00:06]} h5 {[%emt 0:01:26]} 11. a4 {[%emt 0:05:37]} Nbd7 {[%emt 0:02:41]} 12. Nh3 {[%emt 0:00:07]} Re8 {[%emt 0:02:09]} 13. Be2 {[%emt 0:00:12]} Ne5 {[%emt 0:00:52]} 14. Nf2 {[%emt 0:00:06]} a6 {[%emt 0:00:58]} 15. O-O {[%emt 0:00:08]} Rb8 {[%emt 0:03:33]} 16. h3 {[%emt 0:02:33]} Nh7 {[%emt 0:18:08]} 17. f4 {[%emt 0:20:54]} Nd7 {[%emt 0:00:26]} 18. Bd3 {[%emt 0:03:43]} Ndf6 {[%emt 0:11:14]} 19. Qe2 {[%emt 0:25:57]} Qe7 {[%emt 0:15:40]} 20. Rae1 {[%emt 0:00:56]} h4 {[%emt 0:04:45]} 21. Qf3 {[%emt 0:01:56]} Nh5 {[%emt 0:02:59]} 22. Nh1 {[%emt 0:00:13]} b5 {[%emt 0:01:51]} 23. e5 {[%emt 0:04:00]} dxe5 {[%emt 0:02:39]} 24. fxe5 {[%emt 0:07:00]} Bxe5 {[%emt 0:04:43]} 25. d6 {[%emt 0:06:17]} Bxd6 {[%emt 0:03:38]} 26. Nd5 {[%emt 0:05:28]} Qb7 {[%emt 0:07:51]} 27. Be4 {[%emt 0:07:07]} Rxe4 {[%emt 0:01:41]} 28. Qxe4 {[%emt 0:00:06]} Be6 {[%emt 0:00:10]} 29. Nc3 {[%emt 0:06:33]} Qc7 {[%emt 0:00:58]} 30. axb5 {[%emt 0:00:50]} axb5 {[%emt 0:01:27]} 31. Qxh4 {[%emt 0:00:15]} Ng7 {[%emt 0:08:43]} 32. Bf4 {[%emt 0:00:50]} Nf5 {[%emt 0:00:14]} 33. Bxd6 {[%emt 0:00:17]} Qxd6 {[%emt 0:00:13]} 34. Qf4 {[%emt 0:00:10]} Qb6 {[%emt 0:00:54]} 35. Ng3 {[%emt 0:01:01]} Nxg3 {[%emt 0:01:07]} 36. Qxg3 {[%emt 0:00:07]} c4+ {[%emt 0:00:35]} 37. Kh1 {[%emt 0:00:20]} b4 {[%emt 0:00:23]} 38. Rxe6 {[%emt 0:00:16]} fxe6 {[%emt 0:00:28]} 39. Qxg6+ {[%emt 0:00:09]} Kh8 {[%emt 0:00:15]} 40. Rf7 {[%emt 0:00:00]} 1-0

[Event "11th Arad Open 2018"]
[Site "Arad"]
[Date "2018.08.09"]
[Round "6"]
[White "Florescu, Codrut-Constantin"]
[Black "Bai, Adelard"]
[Result "1/2-1/2"]
[ECO "A48"]
[WhiteElo "2295"]
[BlackElo "2071"]
[Annotator "NA"]
[PlyCount "68"]
[EventDate "2018.08.05"]
[EventType "swiss"]
[EventCountry "ROU"]
[SourceTitle "playchess.com"]
[Source "ChessBase"]
[SourceQuality "1"]
[TimeControl "40/5400+30:1800+30"]

1. d4 {[%emt 0:00:00]} Nf6 {[%emt 0:00:00]} 2. Bf4 {[%emt 0:00:00]} g6 {[%emt 0:00:00]} 3. Nf3 {[%emt 0:00:00]} Bg7 {[%emt 0:00:02]} 4. e3 {[%emt 0:00:04]} d6 {[%emt 0:00:40]} 5. Be2 {[%emt 0:00:08]} O-O {[%emt 0:01:12]} 6. O-O {[%emt 0:00:06]} b6 {[%emt 0:00:16]} 7. c4 {[%emt 0:00:10]} Bb7 {[%emt 0:00:57]} 8. Nc3 {[%emt 0:00:08]} Nbd7 {[%emt 0:01:51]} 9. b4 {[%emt 0:00:34]} c5 {[%emt 0:14:30]} 10. bxc5 {[%emt 0:00:13]} dxc5 {[%emt 0:01:19]} 11. d5 {[%emt 0:00:34]} Nh5 {[%emt 0:04:30]} 12. Qd2 {[%emt 0:00:04]} Nxf4 {[%emt 0:00:15]} 13. exf4 {[%emt 0:00:05]} Nf6 {[%emt 0:18:05]} 14. Rad1 {[%emt 0:00:08]} Ne8 {[%emt 0:02:15]} 15. Rfe1 {[%emt 0:01:04]} Nd6 {[%emt 0:02:24]} 16. Bd3 {[%emt 0:00:17]} Qc7 {[%emt 0:08:18]} 17. Ne5 {[%emt 0:00:24]} Rae8 {[%emt 0:04:14]} 18. Bf1 {[%emt 0:03:39]} Ba6 {[%emt 0:11:21]} 19. a4 {[%emt 0:00:46]} f6 {[%emt 0:03:34]} 20. Nc6 {[%emt 0:00:53]} Bxc4 {[%emt 0:01:36]} 21. Bxc4 {[%emt 0:07:34]} Nxc4 {[%emt 0:00:11]} 22. Qa2 {[%emt 0:00:34]} Nd6 {[%emt 0:01:08]} 23. Nb5 {[%emt 0:00:32]} Qd7 {[%emt 0:00:25]} 24. Re6 {[%emt 0:01:59]} Kh8 {[%emt 0:04:15]} 25. Rde1 {[%emt 0:00:16]} Nc8 {[%emt 0:01:48]} 26. f5 {[%emt 0:04:04]} gxf5 {[%emt 0:02:27]} 27. Qe2 {[%emt 0:00:57]} Rg8 {[%emt 0:01:31]} 28. Qf3 {[%emt 0:03:59]} Bh6 {[%emt 0:02:08]} 29. Qxf5 {[%emt 0:01:40]} a6 {[%emt 0:02:26]} 30. Na3 {[%emt 0:02:15]} Rg5 {[%emt 0:00:40]} 31. Qh3 {[%emt 0:04:29]} Qxd5 {[%emt 0:00:51]} 32. f4 {[%emt 0:00:53]} Rh5 {[%emt 0:01:24]} 33. Qc3 {[%emt 0:01:47]} Rg8 34. g3 Bxf4 1/2-1/2

[Event "11th Arad Open 2018"]
[Site "Arad"]
[Date "2018.08.09"]
[Round "6"]
[White "Pisu, Robert-Daniel"]
[Black "Plugaru, Rares"]
[Result "1/2-1/2"]
[ECO "A45"]
[WhiteElo "2282"]
[BlackElo "1948"]
[Annotator "NA"]
[PlyCount "152"]
[EventDate "2018.08.05"]
[EventType "swiss"]
[EventCountry "ROU"]
[SourceTitle "playchess.com"]
[Source "ChessBase"]
[SourceQuality "1"]
[TimeControl "40/5400+30:1800+30"]

1. d4 {[%emt 0:00:00]} Nf6 {[%emt 0:00:00]} 2. g3 {[%emt 0:00:00]} e6 {[%emt 0:02:49]} 3. Bg2 {[%emt 0:00:06]} c5 {[%emt 0:00:46]} 4. Nf3 {[%emt 0:02:33]} Nc6 {[%emt 0:01:53]} 5. O-O {[%emt 0:01:50]} d5 {[%emt 0:03:30]} 6. c4 {[%emt 0:00:56]} dxc4 {[%emt 0:02:03]} 7. Qa4 {[%emt 0:00:08]} Bd7 {[%emt 0:00:18]} 8. dxc5 {[%emt 0:00:10]} Bxc5 {[%emt 0:01:57]} 9. Qxc4 {[%emt 0:00:10]} Qe7 {[%emt 0:10:42]} 10. Bg5 {[%emt 0:07:05]} Bb6 {[%emt 0:04:30]} 11. Rd1 {[%emt 0:23:57]} e5 {[%emt 0:23:40]} 12. Nc3 {[%emt 0:07:31]} Qe6 {[%emt 0:10:05]} 13. Nb5 {[%emt 0:20:31]} Qxc4 {[%emt 0:09:07]} 14. Nd6+ {[%emt 0:00:11]} Ke7 {[%emt 0:00:17]} 15. Nxc4 {[%emt 0:00:08]} h6 {[%emt 0:01:21]} 16. Bxf6+ {[%emt 0:10:02]} gxf6 {[%emt 0:00:35]} 17. Nxb6 {[%emt 0:02:43]} axb6 {[%emt 0:00:06]} 18. Nh4 {[%emt 0:09:41]} Bg4 {[%emt 0:05:40]} 19. Be4 {[%emt 0:04:14]} Rhd8 {[%emt 0:03:52]} 20. f3 {[%emt 0:01:40]} Be6 {[%emt 0:01:06]} 21. a3 {[%emt 0:02:07]} Na5 {[%emt 0:03:28]} 22. Nf5+ {[%emt 0:01:17]} Bxf5 {[%emt 0:00:38]} 23. Bxf5 {[%emt 0:00:01]} Nc4 {[%emt 0:02:19]} 24. Rxd8 {[%emt 0:00:05]} Rxd8 {[%emt 0:00:20]} 25. Rc1 {[%emt 0:00:16]} Nxb2 {[%emt 0:00:57]} 26. Rc7+ {[%emt 0:01:24]} Kf8 {[%emt 0:00:10]} 27. Rxb7 {[%emt 0:00:08]} Rd1+ {[%emt 0:00:26]} 28. Kg2 {[%emt 0:01:03]} Rd6 {[%emt 0:06:21]} 29. Rb8+ {[%emt 0:01:39]} Kg7 {[%emt 0:00:11]} 30. Rc8 {[%emt 0:00:21]} Rd2 {[%emt 0:02:21]} 31. Kf2 {[%emt 0:00:23]} Rd4 {[%emt 0:03:08]} 32. Bc2 {[%emt 0:02:00]} Nd1+ {[%emt 0:00:48]} 33. Ke1 {[%emt 0:00:28]} Ne3 {[%emt 0:00:15]} 34. Bb3 {[%emt 0:00:14]} Nf5 {[%emt 0:00:36]} 35. Rc6 {[%emt 0:01:06]} b5 {[%emt 0:00:17]} 36. Rc5 {[%emt 0:01:14]} Nd6 {[%emt 0:00:21]} 37. Kf2 {[%emt 0:00:35]} Rd2 {[%emt 0:00:39]} 38. Rc6 {[%emt 0:00:21]} Kf8 {[%emt 0:00:54]} 39. Ke3 {[%emt 0:00:34]} Rb2 {[%emt 0:00:30]} 40. Bd5 {[%emt 0:00:00]} Nf5+ {[%emt 0:00:00]} 41. Kd3 {[%emt 0:22:34]} Ne7 {[%emt 0:15:49]} 42. Rc5 {[%emt 0:00:20]} Nxd5 {[%emt 0:00:14]} 43. Rxd5 {[%emt 0:00:04]} Rb3+ {[%emt 0:00:03]} 44. Ke4 {[%emt 0:00:19]} Rxa3 {[%emt 0:00:03]} 45. Rxb5 {[%emt 0:00:05]} Ra2 {[%emt 0:00:07]} 46. Kf5 {[%emt 0:00:49]} Kg7 {[%emt 0:00:14]} 47. Rb4 {[%emt 0:00:31]} Rxe2 {[%emt 0:01:22]} 48. Rg4+ {[%emt 0:00:05]} Kf8 {[%emt 0:01:30]} 49. Kxf6 {[%emt 0:00:21]} Rxh2 {[%emt 0:00:19]} 50. Rg7 {[%emt 0:00:52]} Rf2 {[%emt 0:00:10]} 51. Rxf7+ {[%emt 0:00:07]} Kg8 {[%emt 0:00:27]} 52. Kg6 {[%emt 0:00:30]} Rg2 {[%emt 0:01:39]} 53. g4 {[%emt 0:00:27]} Rg3 {[%emt 0:02:00]} 54. Rf5 {[%emt 0:04:23]} e4 {[%emt 0:00:36]} 55. Re5 {[%emt 0:00:08]} Rxf3 {[%emt 0:00:04]} 56. Rxe4 {[%emt 0:00:19]} Rf8 {[%emt 0:00:16]} 57. Re6 {[%emt 0:02:25]} Rb8 {[%emt 0:00:54]} 58. Ra6 {[%emt 0:01:17]} h5 {[%emt 0:04:28]} 59. Kxh5 {[%emt 0:00:19]} Rb7 {[%emt 0:00:16]} 60. Kg6 {[%emt 0:01:55]} Rg7+ {[%emt 0:00:17]} 61. Kf5 {[%emt 0:00:06]} Rf7+ {[%emt 0:00:21]} 62. Rf6 {[%emt 0:00:06]} Rb7 {[%emt 0:00:14]} 63. g5 {[%emt 0:00:24]} Kg7 {[%emt 0:00:10]} 64. Rg6+ {[%emt 0:00:06]} Kf7 {[%emt 0:00:05]} 65. Rh6 {[%emt 0:00:31]} Rb5+ {[%emt 0:00:10]} 66. Kg4 {[%emt 0:00:06]} Kg7 {[%emt 0:00:05]} 67. Ra6 {[%emt 0:00:11]} Rb1 {[%emt 0:00:09]} 68. Ra7+ {[%emt 0:00:20]} Kg6 {[%emt 0:00:01]} 69. Ra6+ {[%emt 0:00:06]} Kg7 {[%emt 0:00:03]} 70. Rf6 {[%emt 0:01:42]} Rg1+ {[%emt 0:00:06]} 71. Kf5 {[%emt 0:00:04]} Rf1+ {[%emt 0:00:05]} 72. Ke6 {[%emt 0:00:03]} Re1+ {[%emt 0:00:04]} 73. Kd6 {[%emt 0:00:08]} Rg1 {[%emt 0:00:07]} 74. Rf5 {[%emt 0:00:03]} Kg6 {[%emt 0:00:04]} 75. Rd5 {[%emt 0:00:03]} Rxg5 {[%emt 0:00:06]} 76. Rxg5+ {[%emt 0:00:02]} Kxg5 {[%emt 0:00:01]} 1/2-1/2

[Event "11th Arad Open 2018"]
[Site "Arad"]
[Date "2018.08.09"]
[Round "6"]
[White "Cvetkovic, Srdjan"]
[Black "Zawadzka, Jolanta"]
[Result "0-1"]
[ECO "A12"]
[WhiteElo "2252"]
[BlackElo "2435"]
[Annotator "NA"]
[PlyCount "76"]
[EventDate "2018.08.05"]
[EventType "swiss"]
[EventCountry "ROU"]
[SourceTitle "playchess.com"]
[Source "ChessBase"]
[SourceQuality "1"]
[TimeControl "40/5400+30:1800+30"]

1. c4 {[%emt 0:00:00]} c6 {[%emt 0:00:35]} 2. Nf3 {[%emt 0:04:59]} d5 {[%emt 0:00:09]} 3. b3 {[%emt 0:04:03]} Bg4 {[%emt 0:00:31]} 4. Bb2 {[%emt 0:06:32]} Nf6 {[%emt 0:00:38]} 5. e3 {[%emt 0:04:24]} Nbd7 {[%emt 0:01:08]} 6. h3 {[%emt 0:06:03]} Bh5 {[%emt 0:04:16]} 7. cxd5 {[%emt 0:13:08]} cxd5 {[%emt 0:06:29]} 8. g4 {[%emt 0:14:36]} Bg6 {[%emt 0:00:26]} 9. g5 {[%emt 0:03:28]} Ne4 {[%emt 0:04:10]} 10. Nc3 {[%emt 0:03:43]} e6 {[%emt 0:08:44]} 11. Nxe4 {[%emt 0:01:01]} dxe4 {[%emt 0:02:05]} 12. Ne5 {[%emt 0:06:29]} Nxe5 {[%emt 0:00:18]} 13. Bxe5 {[%emt 0:00:04]} Qxg5 {[%emt 0:05:04]} 14. Bb2 {[%emt 0:01:14]} Rd8 {[%emt 0:18:53]} 15. h4 {[%emt 0:02:51]} Qa5 {[%emt 0:00:09]} 16. a3 {[%emt 0:00:05]} Bh5 {[%emt 0:04:13]} 17. Qc2 {[%emt 0:03:28]} f6 {[%emt 0:02:36]} 18. Bd4 {[%emt 0:08:05]} Bf3 {[%emt 0:06:43]} 19. Rg1 {[%emt 0:01:10]} Kf7 {[%emt 0:01:08]} 20. b4 {[%emt 0:02:06]} Qd5 {[%emt 0:01:05]} 21. Qc7+ {[%emt 0:04:07]} Rd7 {[%emt 0:03:02]} 22. Qc8 {[%emt 0:00:34]} Rd8 {[%emt 0:06:35]} 23. Qc7+ {[%emt 0:00:06]} Qd7 {[%emt 0:00:06]} 24. Qxd7+ {[%emt 0:02:25]} Rxd7 {[%emt 0:00:02]} 25. Bxa7 {[%emt 0:00:34]} Bd6 {[%emt 0:00:17]} 26. Be2 {[%emt 0:00:43]} Be5 {[%emt 0:04:54]} 27. Bxf3 {[%emt 0:02:29]} Bxa1 {[%emt 0:00:38]} 28. Bxe4 {[%emt 0:00:13]} Ra8 {[%emt 0:01:02]} 29. Ke2 {[%emt 0:01:01]} Be5 {[%emt 0:01:37]} 30. Bb6 {[%emt 0:00:54]} f5 {[%emt 0:04:26]} 31. Bd3 {[%emt 0:01:30]} Rxa3 {[%emt 0:03:47]} 32. Bb5 {[%emt 0:00:05]} Rd6 {[%emt 0:00:18]} 33. Bc7 {[%emt 0:01:52]} Rd5 {[%emt 0:00:38]} 34. Bxe5 {[%emt 0:00:06]} Rxe5 {[%emt 0:00:06]} 35. Bc4 {[%emt 0:00:07]} Re4 {[%emt 0:00:13]} 36. Rc1 {[%emt 0:00:50]} Rxh4 {[%emt 0:00:20]} 37. f4 {[%emt 0:00:22]} Rh2+ {[%emt 0:00:42]} 38. Ke1 {[%emt 0:00:14]} Kf6 {[%emt 0:01:02]} 0-1